bitfinex-derivatives/quotes_SOLF0:USTF0_20251126
["timestamp","ask_amount","ask_price","bid_price","bid_amount"]
[1764189941663,98.0933,142.76,142.68,3.08]
[1764189941862,8.57177338,142.74,142.68,3.08]
[1764189942165,6.3088,142.7,142.68,3.08]
[1764189942357,98.1123,142.74,142.68,3.08]
[1764189942358,8.57177338,142.74,142.68,3.08]
[1764189942561,6.35759611,142.72,142.7,0.04444524]
[1764189943063,14.92936949,142.72,142.7,0.04444524]
[1764189943366,6.35759611,142.72,142.7,0.04444524]
[1764189944859,8.56635224,142.77,142.72,3.08]
[1764189945060,102.35284546,142.82,142.72,3.08]
[1764189945258,102.35284546,142.82,142.73,3.08]
[1764189945868,6.3051,142.78,142.76,0.04739892]
[1764189947563,0.04697176,142.79,142.76,3.12739892]
[1764189948259,0.04697176,142.79,142.76,0.04739892]
[1764189948459,0.04697176,142.79,142.76,3.12739892]
[1764189949468,0.04697176,142.79,142.77,3.08]
[1764189955766,115.05215549,142.88,142.77,3.08]
[1764189955767,24.18,142.86,142.77,3.08]
[1764189955961,102.32174546,142.87,142.77,3.08]
[1764189956167,24.18,142.86,142.77,3.08]
[1764189956775,0.03836067,142.83,142.8,0.05383362]
[1764189957070,0.03836067,142.83,142.8,3.13383362]
[1764189957872,6.47236469,142.83,142.8,3.13383362]
[1764189958667,6.43400402,142.82,142.8,0.05383362]
[1764189958880,12.73740402,142.82,142.8,0.05383362]
[1764189959077,6.43400402,142.81,142.8,0.05383362]
[1764189959474,6.3034,142.82,142.8,0.05383362]
[1764189959980,6.43512846,142.81,142.8,0.05383362]
[1764189961071,6.3034,142.82,142.8,0.05383362]
[1764189961876,6.44447465,142.81,142.8,0.05383362]
[1764189962064,6.3034,142.82,142.8,0.05383362]
[1764189967784,24.16,142.81,142.8,0.05383362]
[1764189968484,30.4634,142.82,142.8,0.05383362]
[1764189968684,6.44185416,142.81,142.8,0.05383362]
[1764189969081,30.4634,142.82,142.8,0.05383362]
[1764189970183,6.3034,142.82,142.8,0.05383362]
[1764189972085,6.43898423,142.81,142.8,0.05383362]
[1764189972293,6.3034,142.82,142.8,0.05383362]
[1764189972589,6.43873387,142.81,142.8,0.05383362]
[1764189973378,6.3034,142.82,142.8,0.05383362]
[1764189973788,6.3037,142.81,142.8,0.05383362]
[1764189977196,12.73909086,142.81,142.8,0.05383362]
[1764189978100,6.3037,142.81,142.8,0.05383362]
[1764189978305,12.73848118,142.81,142.8,0.05383362]
[1764189979296,6.3037,142.81,142.8,0.05383362]
[1764189980093,12.73781495,142.81,142.8,0.05383362]
[1764189980407,12.73791497,142.81,142.8,0.05383362]
[1764189981290,6.3037,142.81,142.8,0.05383362]
[1764189981496,12.73802661,142.81,142.8,0.05383362]
[1764189982403,6.3037,142.81,142.8,0.05383362]
[1764189982698,9.05240445,142.81,142.8,0.05383362]
[1764189982999,6.47236524,142.83,142.8,2.98383362]
[1764189983206,6.43400457,142.82,142.8,0.05383362]
[1764189983397,0.03836067,142.83,142.8,2.98383362]
[1764189985206,6.43400457,142.86,142.82,2.93]
[1764189985402,6.43400457,142.89,142.84,2.93]
[1764189985604,6.43400457,142.91,142.84,2.93]
[1764189985904,6.43400457,142.92,142.84,2.93]
[1764189986104,12.73330457,142.92,142.86,2.93]
[1764189986308,9.18270902,142.91,142.88,2.97843367]
[1764189986499,9.18270902,142.91,142.88,2.98028594]
[1764189986708,6.2999,142.9,142.88,2.98028594]
[1764189988013,6.43400457,142.91,142.88,2.98028594]
[1764189988512,15.48170902,142.92,142.88,2.98028594]
[1764189988710,6.43400457,142.92,142.88,2.98028594]
[1764189989202,9.18270902,142.93,142.88,2.98028594]
[1764189989402,12.73310457,142.92,142.88,2.98028594]
[1764189989808,6.43400457,142.92,142.88,2.98028594]
[1764189990004,9.04820445,142.91,142.88,2.98028594]
[1764189991106,6.2995,142.91,142.88,2.98028594]
[1764189997316,9.04850445,142.9,142.88,0.05028594]
[1764189998016,6.3013,142.87,142.85,10.16]
[1764189998216,2.74870445,142.86,142.85,10.16]
[1764189998912,2.74870445,142.88,142.85,13.09]
[1764189999214,0.05028594,142.87,142.86,2.93]
[1764190001620,0.05028594,142.87,142.85,10.16]
[1764190001914,2.74870445,142.86,142.85,10.16]
[1764190003920,0.05028594,142.87,142.86,2.9]
[1764190005015,7.75148594,142.87,142.85,0.44118602]
[1764190005207,33.28270902,142.86,142.84,0.05227443]
[1764190005412,26.88870445,142.86,142.84,0.05227443]
[1764190006016,2.74870445,142.86,142.84,0.05227443]
[1764190006713,9.05030445,142.86,142.84,0.05227443]
[1764190006914,9.05030445,142.86,142.84,2.95227443]
[1764190007312,2.74870445,142.86,142.84,2.95227443]
[1764190008723,0.05028594,142.87,142.84,2.95227443]
[1764190012421,0.05028594,142.87,142.85,2.9]
[1764190017031,2.74870445,142.86,142.84,0.05227443]
[1764190018529,9.05030445,142.86,142.84,0.05227443]
[1764190019322,2.74870445,142.86,142.84,0.05227443]
[1764190020435,9.05030445,142.86,142.84,0.05227443]
[1764190021340,6.3034,142.82,142.77,2.9]
[1764190021630,2.74870445,142.81,142.77,2.9]
[1764190022327,0.05317072,142.8,142.79,2.9]
[1764190025231,0.05317072,142.8,142.78,2.95208827]
[1764190026529,98.0865,142.77,142.71,3.0]
[1764190026730,10.72804333,142.75,142.71,3.0]
[1764190027333,4.29403876,142.75,142.71,3.0]
[1764190027545,0.04965879,142.74,142.72,3.04529153]
[1764190037341,0.04965879,142.74,142.72,3.12529153]
[1764190041047,0.04965879,142.74,142.72,0.04529153]
[1764190041048,6.35665879,142.74,142.72,0.04529153]
[1764190041743,6.3084,142.71,142.68,3.08]
[1764190041948,10.60243876,142.71,142.68,3.08]
[1764190042144,6.3076,142.73,142.68,3.08]
[1764190042748,0.05083699,142.72,142.7,3.08]
[1764190043153,6.35863699,142.72,142.7,3.08]
[1764190043646,4.29403876,142.78,142.7,3.08]
[1764190043848,6.3064,142.75,142.71,3.08]
[1764190044241,6.3064,142.75,142.67,101.16766648]
[1764190044242,4.29403876,142.72,142.67,3.01556648]
[1764190044435,6.3091,142.69,142.67,3.01556648]
[1764190044642,6.35921584,142.69,142.67,3.06552288]
[1764190044944,0.05011584,142.69,142.67,3.06552288]
[1764190045944,10.6533546,142.69,142.67,3.06552288]
[1764190046150,10.6533546,142.69,142.56,3.08]
[1764190046151,98.1553,142.67,142.56,3.08]
[1764190046341,4.29403876,142.64,142.56,3.08]
[1764190046545,4.29403876,142.64,142.56,9.3946]
[1764190046843,4.29403876,142.66,142.57,3.08]
[1764190047044,0.04423559,142.63,142.6,0.04952923]
[1764190047341,0.04423559,142.63,142.6,3.12952923]
[1764190048950,0.04423559,142.63,142.61,3.08]
[1764190049144,0.04423559,142.63,142.6,3.12952923]
[1764190051441,0.04423559,142.63,142.6,9.44232923]
[1764190051656,0.04423559,142.63,142.61,3.08]
[1764190052046,0.04423559,142.63,142.62,3.08]
[1764190052450,4.29403876,142.67,142.62,3.08]
[1764190052754,6.3097,142.68,142.62,3.08]
[1764190053352,0.05078216,142.66,142.64,3.12566669]
[1764190053545,0.05078216,142.66,142.64,0.04566669]
[1764190053947,0.05078216,142.66,142.64,3.12566669]
[1764190054347,0.05078216,142.66,142.64,0.04566669]
[1764190054747,0.05078216,142.66,142.64,3.12566669]
[1764190054955,122.2907,142.71,142.64,3.12566669]
[1764190054956,4.29403876,142.71,142.64,3.12566669]
[1764190055256,10.60243876,142.71,142.64,3.12566669]
[1764190055952,0.05384059,142.69,142.64,3.12566669]
[1764190056151,0.05384059,142.69,142.64,9.43676669]
[1764190056356,0.05384059,142.69,142.65,3.08]
[1764190059248,0.05384059,142.69,142.67,3.08]
[1764190059754,0.05384059,142.69,142.65,3.08]
[1764190061248,0.05384059,142.69,142.65,9.3907]
[1764190061451,0.05384059,142.69,142.65,3.08]
[1764190061857,20.97687455,142.75,142.66,3.07]
[1764190062051,6.371293,142.76,142.69,3.07]
[1764190062052,6.3063,142.76,142.69,3.07]
[1764190062258,10.66533176,142.77,142.69,3.07]
[1764190062854,0.04778216,142.74,142.72,3.12335678]
[1764190064568,6.35478216,142.74,142.72,3.12335678]
[1764190067361,6.35478216,142.74,142.72,0.05335678]
[1764190067858,6.35478216,142.74,142.72,3.12335678]
[1764190068568,6.35478216,142.74,142.72,0.05335678]
[1764190070351,12.72607516,142.74,142.72,0.05335678]
[1764190072967,12.72607516,142.74,142.72,3.12335678]
[1764190073663,12.72607516,142.74,142.72,0.05335678]
[1764190074862,12.72607516,142.74,142.72,3.12335678]
[1764190075062,6.35478216,142.74,142.72,3.12335678]
[1764190075462,0.04778216,142.74,142.72,3.12335678]
[1764190078175,6.35458216,142.74,142.72,3.12335678]
[1764190079678,0.04778216,142.74,142.72,3.12335678]
[1764190081267,6.371293,142.76,142.72,3.12335678]
[1764190081477,6.371293,142.79,142.73,3.07]
[1764190081674,6.371293,142.81,142.73,3.07]
[1764190081876,6.371293,142.81,142.78,3.07]
[1764190082075,10.66533176,142.81,142.72,3.07]
[1764190082378,16.96913176,142.81,142.76,3.07]
[1764190082767,10.66533176,142.81,142.76,3.07]
[1764190083778,10.66533176,142.81,142.76,9.3758]
[1764190083972,6.371293,142.82,142.77,3.07]
[1764190084274,6.371293,142.83,142.79,3.07]
[1764190084580,6.371293,142.83,142.78,0.04567255]
[1764190084781,6.371293,142.83,142.78,3.11567255]
[1764190085074,6.371293,142.82,142.78,3.11567255]
[1764190085278,6.371293,142.83,142.78,3.11567255]
[1764190085479,6.3038,142.81,142.78,3.11567255]
[1764190086780,9.05282908,142.8,142.78,0.04567255]
[1764190087181,2.74852908,142.8,142.74,3.12]
[1764190087373,2.74852908,142.76,142.74,3.12]
[1764190088281,2.79662071,142.76,142.74,3.17071561]
[1764190088682,0.04809163,142.76,142.74,3.17071561]
[1764190092681,2.74852908,142.8,142.75,3.06]
[1764190092880,6.371293,142.83,142.75,3.06]
[1764190093079,12.87581461,142.86,142.75,3.06]
[1764190093080,9.11982208,142.84,142.75,3.06]
[1764190093681,6.3031,142.83,142.79,3.06]
[1764190093882,2.74852908,142.82,142.79,3.06]
[1764190094685,9.05192908,142.82,142.79,3.06]
[1764190095389,9.05192908,142.82,142.78,0.04931945]
[1764190095582,9.05192908,142.82,142.78,3.10931945]
[1764190097291,2.74852908,142.82,142.78,3.10931945]
[1764190099292,9.05192908,142.82,142.78,3.10931945]
[1764190099687,2.74852908,142.79,142.78,0.04931945]
[1764190099888,2.74852908,142.79,142.71,3.06]
[1764190099889,9.11982208,142.79,142.71,3.06]
[1764190100083,24.12,142.8,142.71,3.06]
[1764190100084,9.1667774,142.78,142.71,3.06]
[1764190100277,6.3057,142.77,142.71,9.368]
[1764190100490,6.3057,142.77,142.72,3.06]
[1764190100994,0.04931945,142.76,142.75,3.06]
[1764190101292,0.04931945,142.77,142.75,3.06]
[1764190103786,0.04931945,142.77,142.74,0.04977733]
[1764190103986,2.74852908,142.76,142.74,0.04977733]
[1764190104496,0.04931945,142.77,142.74,0.04977733]
[1764190104698,0.04931945,142.77,142.74,3.10977733]
[1764190107797,2.74852908,142.76,142.74,0.04977733]
[1764190108098,11.33287287,142.76,142.74,0.04977733]
[1764190108494,8.58434379,142.75,142.68,3.06]
[1764190108688,2.74852908,142.72,142.68,3.06]
[1764190109604,0.05309592,142.71,142.7,3.06]
[1764190111792,0.05309592,142.71,142.69,0.05332376]
[1764190112795,6.36129592,142.71,142.69,3.11332376]
[1764190112997,0.05309592,142.71,142.69,3.11332376]
[1764190114998,2.801625,142.71,142.69,3.11332376]
[1764190115204,9.109825,142.71,142.69,0.05332376]
[1764190115400,15.54249887,142.71,142.69,0.05332376]
[1764190115804,6.43267387,142.7,142.69,0.05332376]
[1764190119111,15.54249887,142.71,142.69,0.05332376]
[1764190120913,9.109825,142.71,142.69,0.05332376]
[1764190121108,15.54249887,142.71,142.69,0.05332376]
[1764190124809,9.109825,142.71,142.69,0.05332376]
[1764190126414,15.54249887,142.71,142.69,0.05332376]
[1764190127113,6.3086,142.7,142.69,0.05332376]
[1764190127717,6.3095,142.68,142.61,2.9]
[1764190127916,9.05802908,142.68,142.61,2.9]
[1764190128217,2.74852908,142.71,142.64,2.9]
[1764190128617,0.04864387,142.69,142.67,2.9]
[1764190129018,0.04864387,142.69,142.67,9.2099]
[1764190129212,9.17196735,142.74,142.68,2.9]
[1764190129522,2.74852908,142.74,142.68,2.9]
[1764190130221,106.67424379,142.77,142.7,2.94818261]
[1764190130222,0.05310282,142.72,142.7,2.94818261]
[1764190130422,0.0501131,142.72,142.7,2.94818261]
[1764190130924,6.3059,142.77,142.72,2.9]
[1764190131821,0.04805014,142.76,142.73,2.95139977]
[1764190137026,2.79657922,142.76,142.73,2.95139977]
[1764190137920,0.04805014,142.76,142.73,2.95139977]
[1764190140132,0.04805014,142.76,142.73,0.05139977]
[1764190140317,9.17196735,142.75,142.73,0.05139977]
[1764190140519,6.42343827,142.74,142.67,27.0]
[1764190140825,9.05672908,142.71,142.67,2.9]
[1764190141026,2.74852908,142.69,142.66,2.9]
[1764190141620,2.74852908,142.69,142.66,2.9450179]
[1764190141621,2.80136993,142.69,142.66,2.9450179]
[1764190142130,0.05284085,142.69,142.66,2.9450179]
[1764190144121,0.05284085,142.69,142.67,2.9]
[1764190144718,0.05284085,142.69,142.67,9.2099]
[1764190144918,0.05284085,142.69,142.68,2.9]
[1764190145626,6.43505893,142.73,142.68,2.9]
[1764190145627,6.43505893,142.73,142.69,2.9]
[1764190145823,6.43505893,142.74,142.69,2.9]
[1764190146022,9.18358801,142.73,142.69,2.9]
[1764190146730,0.04920328,142.72,142.7,3.10979885]
[1764190151226,6.50554435,142.72,142.7,3.10979885]
[1764190152022,0.04920328,142.72,142.7,3.10979885]
[1764190152228,6.50554435,142.72,142.7,3.10979885]
[1764190152628,0.04920328,142.72,142.7,3.10979885]
[1764190152929,6.50554435,142.72,142.7,3.10979885]
[1764190154132,0.04920328,142.72,142.7,3.10979885]
[1764190156031,0.04920328,142.72,142.7,0.04979885]
[1764190156336,12.92501789,142.72,142.66,3.1]
[1764190156545,6.46314861,142.67,142.66,3.1]
[1764190156730,6.46314861,142.68,142.66,3.1]
[1764190157033,19.22614144,142.7,142.66,3.1]
[1764190157034,6.46314861,142.69,142.66,3.1]
[1764190157238,6.51474772,142.69,142.66,3.14944612]
[1764190158137,6.51474772,142.69,142.67,3.1]
[1764190158328,0.05159911,142.69,142.67,3.1]
[1764190159040,6.51474772,142.69,142.67,3.1]
[1764190161728,0.05159911,142.69,142.67,3.1]
[1764190161928,6.51474772,142.69,142.67,3.1]
[1764190165746,0.05159911,142.69,142.67,3.1]
[1764190166452,6.51474772,142.69,142.67,3.1]
[1764190167540,0.05159911,142.69,142.67,3.1]
[1764190168145,6.51474772,142.69,142.67,3.1]
[1764190169041,12.82384772,142.69,142.67,3.1]
[1764190169950,0.05159911,142.69,142.67,3.1]
[1764190171551,0.05159911,142.69,142.67,9.4098]
[1764190171850,0.05159911,142.69,142.68,3.1]
[1764190174550,0.05159911,142.69,142.68,9.4095]
[1764190175252,0.05159911,142.69,142.68,3.1]
[1764190175653,0.05159911,142.69,142.68,9.4095]
[1764190179364,6.51474772,142.69,142.68,3.1]
[1764190179559,6.51474772,142.69,142.66,3.14944612]
[1764190181265,6.46314861,142.68,142.66,3.14944612]
[1764190182574,6.46314861,142.68,142.67,3.08]
[1764190182867,6.51474772,142.69,142.67,3.08]
[1764190183565,6.46314861,142.68,142.67,3.08]
[1764190183768,0.05159911,142.69,142.67,3.08]
[1764190183965,6.47488942,142.68,142.67,3.08]
[1764190184166,0.05159911,142.69,142.67,3.08]
[1764190184468,6.52955525,142.69,142.67,3.08]
[1764190184653,8.68887397,142.69,142.66,0.04944612]
[1764190184860,6.47742929,142.67,142.66,0.04944612]
[1764190185362,8.63727486,142.68,142.66,3.12944612]
[1764190185563,6.47698462,142.67,142.66,3.12944612]
[1764190187269,3.38858373,142.69,142.68,3.08]
[1764190187466,0.05159911,142.69,142.68,3.08]
[1764190188870,8.63727486,142.73,142.7,3.08]
[1764190189266,14.94417486,142.74,142.7,3.08]
[1764190189873,0.0487308,142.73,142.71,0.05096912]
[1764190190075,8.68600566,142.73,142.71,3.13096912]
[1764190190274,0.0487308,142.73,142.71,3.13096912]
[1764190191680,8.68600566,142.73,142.71,3.13096912]
[1764190191973,0.0487308,142.73,142.71,3.13096912]
[1764190192567,8.68600566,142.73,142.71,3.13096912]
[1764190192766,0.0487308,142.73,142.71,3.13096912]
[1764190194477,0.0487308,142.73,142.72,3.08]
[1764190195379,8.63727486,142.77,142.74,3.08]
[1764190195571,8.63727486,142.78,142.74,3.08]
[1764190195879,8.63727486,142.79,142.74,3.08]
[1764190196074,8.63727486,142.77,142.71,3.08]
[1764190196283,4.29960996,142.78,142.71,3.08]
[1764190196284,8.63727486,142.76,142.71,3.08]
[1764190196475,8.63727486,142.76,142.72,3.12630697]
[1764190197475,8.63727486,142.77,142.72,3.12630697]
[1764190197674,14.94327486,142.76,142.72,3.12630697]
[1764190199977,14.94327486,142.76,142.72,9.43400697]
[1764190200174,8.63727486,142.76,142.72,0.04630697]
[1764190200377,98.1214,142.72,142.65,3.08]
[1764190200587,4.29960996,142.7,142.65,3.08]
[1764190200773,5.48672437,142.72,142.65,3.08]
[1764190201083,41.12095549,142.78,142.65,3.08]
[1764190201084,0.38,142.75,142.68,3.08]
[1764190201378,0.0479984,142.73,142.71,3.08]
[1764190201584,0.38,142.77,142.71,3.08]
[1764190201879,0.0479984,142.73,142.71,3.12916178]
[1764190202474,0.4279984,142.73,142.71,0.04916178]
[1764190203269,0.38,142.72,142.71,0.04916178]
[1764190205988,0.0479984,142.73,142.71,3.12916178]
[1764190206180,0.4279984,142.73,142.71,0.04916178]
[1764190207793,0.38,142.72,142.71,0.04916178]
[1764190208091,6.7353984,142.73,142.71,0.04916178]
[1764190208688,9.48728032,142.73,142.71,0.04916178]
[1764190208889,0.0479984,142.73,142.71,3.05916178]
[1764190211587,0.38,142.79,142.72,3.06]
[1764190211790,2.75188192,142.78,142.72,3.06]
[1764190211983,3.18188192,142.78,142.72,3.06]
[1764190212584,3.18188192,142.78,142.74,3.10455113]
[1764190212785,0.43,142.77,142.74,3.10455113]
[1764190214290,230.93895553,142.8,142.75,3.06]
[1764190214495,3.18188192,142.8,142.75,3.06]
[1764190214790,0.43,142.79,142.75,3.06]
[1764190215789,12.94019339,142.81,142.76,3.06]
[1764190215995,0.43,142.81,142.77,3.11001969]
[1764190216386,6.7338,142.81,142.77,3.11001969]
[1764190216986,9.48568192,142.81,142.77,3.11001969]
[1764190217685,2.75188192,142.81,142.78,3.06]
[1764190217889,37.50744457,142.85,142.78,3.06]
[1764190218083,0.43,142.84,142.8,3.10669844]
[1764190219187,20.63707644,142.85,142.81,3.06]
[1764190219394,3.18188192,142.86,142.81,3.06]
[1764190219583,3.18188192,142.86,142.82,3.10791565]
[1764190219788,3.18188192,142.86,142.82,9.41111565]
[1764190219988,0.43,142.85,142.82,3.10791565]
[1764190221002,3.18188192,142.86,142.82,3.10791565]
[1764190223092,0.43,142.86,142.82,3.10791565]
[1764190225192,0.43,142.86,142.82,9.41111565]
[1764190225795,0.43,142.86,142.83,3.06]
[1764190228803,0.43,142.85,142.82,3.10791565]
[1764190229001,24.16305368,142.86,142.82,3.10791565]
[1764190229201,2.75188192,142.86,142.82,9.41111565]
[1764190229405,2.75188192,142.86,142.83,3.06]
[1764190229593,3.18188192,142.86,142.83,3.06]
[1764190230003,2.75188192,142.88,142.83,9.3627]
[1764190230212,2.75188192,142.88,142.84,3.10689059]
[1764190230408,0.43,142.92,142.84,3.10689059]
[1764190230616,208.37888209,142.96,142.9,3.06]
[1764190231006,3.18188192,142.98,142.9,3.06]
[1764190231308,3.18188192,143.0,142.93,3.06]
[1764190231514,24.33502876,143.0,142.93,3.06]
[1764190231717,2.75188192,142.99,142.95,3.11161182]
[1764190232808,0.43,142.98,142.95,0.05161182]
[1764190233004,3.18188192,142.97,142.95,0.05161182]
[1764190233204,2.75188192,142.97,142.95,0.05161182]
[1764190233405,6.2964,142.98,142.95,3.11161182]
[1764190233606,3.18188192,142.97,142.95,0.05161182]
[1764190234208,2.75188192,142.97,142.95,3.11161182]
[1764190238720,0.43,142.96,142.95,0.05161182]
[1764190241122,9.47798192,142.99,142.95,3.11161182]
[1764190242313,9.04798192,142.99,142.95,3.11161182]
[1764190242511,2.75188192,142.99,142.95,3.11161182]
[1764190242718,0.42,143.0,142.95,3.11161182]
[1764190242913,0.42,142.98,142.95,3.11161182]
[1764190243821,3.17188192,142.99,142.95,3.11161182]
[1764190244214,0.42,142.98,142.95,0.05161182]
[1764190244415,6.7163,142.98,142.95,0.05161182]
[1764190244923,27.22973547,143.0,142.95,3.18161182]
[1764190245125,3.17188192,142.99,142.95,3.18161182]
[1764190245825,6.2963,142.98,142.95,3.18161182]
[1764190248131,6.7163,142.98,142.95,3.18161182]
[1764190248336,0.42,142.98,142.95,3.18161182]
[1764190248534,0.42,143.03,142.95,3.18161182]
[1764190248726,6.2943,143.03,142.95,3.18161182]
[1764190248924,2.75188192,143.02,142.95,3.18161182]
[1764190250118,29.55899765,143.02,142.98,3.13]
[1764190250323,20.51251573,143.02,142.99,3.1807852]
[1764190250520,6.2932,143.05,143.0,3.13]
[1764190250734,6.2932,143.05,142.96,97.9528]
[1764190250735,6.7132,143.05,143.02,3.13]
[1764190251127,0.42,143.03,143.01,0.04594278]
[1764190252125,6.7141,143.03,143.01,0.04594278]
[1764190252330,9.46598192,143.03,143.01,0.04594278]
[1764190253829,0.42,143.02,143.01,0.04594278]
[1764190257937,3.17188192,143.02,143.01,0.04594278]
[1764190258335,0.38,142.98,142.93,3.13]
[1764190258632,3.13188192,142.98,142.93,3.13]
[1764190258837,3.13188192,142.98,142.94,3.13]
[1764190259338,0.04594278,142.97,142.95,0.04507435]
[1764190260135,0.04594278,142.97,142.95,3.17507435]
[1764190261537,0.04594278,142.97,142.96,3.13]
[1764190270041,0.37,142.96,142.95,0.04507435]
[1764190270549,4.65690154,142.96,142.95,0.04507435]
[1764190270738,11.05358612,142.96,142.95,0.04507435]
[1764190271042,0.04594278,142.97,142.95,3.13507435]
[1764190271444,0.04594278,142.97,142.95,9.43257435]
[1764190271644,0.04594278,142.97,142.96,2.89]
[1764190272245,12.69198458,143.01,142.97,2.89]
[1764190272549,0.36,143.0,142.97,2.89]
[1764190272846,6.75668458,143.0,142.97,2.89]
[1764190273041,13.05208458,143.0,142.97,2.89]
[1764190273241,13.05208458,143.0,142.92,97.98]
[1764190273537,6.39668458,142.99,142.91,97.9868]
[1764190274242,0.04507435,142.96,142.94,0.05045321]
[1764190274739,0.04507435,142.96,142.94,6.34825321]
[1764190275442,0.04507435,142.96,142.95,2.89]
[1764190277645,6.39668458,142.98,142.95,2.89]
[1764190277838,6.39668458,142.99,142.95,2.89]
[1764190278043,6.39668458,142.98,142.95,2.89]
[1764190278442,6.39668458,142.98,142.96,2.89]
[1764190280455,6.39668458,142.98,142.97,2.89]
[1764190280651,9.345,143.01,142.97,2.89]
[1764190280652,6.39668458,142.99,142.97,2.89]
[1764190280841,6.39668458,142.99,142.97,2.93505553]
[1764190283255,6.2954,143.0,142.97,2.93505553]
[1764190283443,6.5124804,142.99,142.97,2.93505553]
[1764190284454,6.5124804,142.98,142.97,2.93505553]
[1764190284647,6.5124804,142.99,142.97,2.93505553]
[1764190284846,6.5124804,142.98,142.97,2.93505553]
[1764190286453,4.06536548,143.0,142.97,2.93505553]
[1764190286656,8.59155108,143.02,142.97,2.93505553]
[1764190286854,8.59155108,143.03,142.97,2.93505553]
[1764190287250,8.59155108,143.03,143.0,2.89]
[1764190287445,8.59155108,143.03,143.0,2.93900249]
[1764190288350,11.64155108,143.03,143.0,2.93900249]
[1764190289560,11.64155108,143.03,143.0,9.23430249]
[1764190290851,8.59155108,143.03,143.01,2.89]
[1764190291153,8.59155108,143.03,143.01,9.1849]
[1764190291347,8.59155108,143.04,143.02,2.89]
[1764190291847,11.64155108,143.04,143.02,2.89]
[1764190294361,3.05,143.04,143.01,9.1849]
[1764190294558,11.64155108,143.04,143.01,9.1849]
[1764190294863,3.05,143.04,143.01,9.1849]
[1764190296555,3.05,143.04,143.02,2.89]
[1764190296761,8.59155108,143.06,143.03,2.89]
[1764190296961,8.59155108,143.06,143.03,2.94345331]
[1764190297263,11.64155108,143.08,143.03,2.94345331]
[1764190297766,11.64155108,143.08,143.05,2.89]
[1764190298361,3.05,143.07,143.05,2.89]
[1764190298561,3.05,143.07,143.03,2.94345331]
[1764190298769,11.64155108,143.08,143.03,2.94345331]
[1764190299069,11.64155108,143.08,143.05,2.89]
[1764190299070,17.93345108,143.08,143.05,2.89]
[1764190299469,9.3419,143.08,143.05,2.89]
[1764190299664,3.05,143.08,143.05,2.89]
[1764190299968,3.05,143.09,143.05,2.89]
[1764190300168,3.05,143.12,143.05,2.89]
[1764190300467,3.05,143.11,143.07,9.23098044]
[1764190300666,3.05,143.11,143.08,2.89]
[1764190301072,3.05,143.1,143.07,9.23098044]
[1764190304977,3.05,143.1,143.08,2.83]
[1764190305175,3.06,143.12,143.09,2.83]
[1764190305873,3.06,143.12,143.08,9.1218]
[1764190306672,3.06,143.12,143.08,6.2918]
[1764190306872,3.06,143.07,142.99,2.83]
[1764190307173,3.06,143.03,142.99,2.83]
[1764190307773,3.06,143.03,143.0,9.125]
[1764190308077,0.04878044,143.02,143.0,9.17349875]
[1764190309869,0.04878044,143.02,143.0,2.87849875]
[1764190310373,0.04878044,143.02,143.01,2.83]
[1764190311366,0.04878044,143.02,143.0,2.87849875]
[1764190315983,0.04878044,143.02,143.0,9.17369875]
[1764190316186,3.06,143.07,143.01,2.83]
[1764190316580,3.06,143.07,143.01,9.1245]
[1764190316777,3.06,143.07,143.02,2.83]
[1764190317183,3.06,143.07,143.03,2.88112999]
[1764190317378,9.3528,143.06,143.03,2.88112999]
[1764190320289,3.06,143.06,143.03,2.88112999]
[1764190321788,3.06,143.06,143.03,9.17512999]
[1764190322884,6.2924,143.07,143.04,2.83]
[1764190323080,4.28690154,143.09,143.05,2.83]
[1764190323283,3.06,143.12,143.05,2.83]
[1764190323482,3.06,143.11,143.08,2.83]
[1764190323692,3.06,143.11,143.07,2.87482096]
[1764190323887,9.3507,143.11,143.07,2.87482096]
[1764190324490,8.59155108,143.13,143.08,2.83]
[1764190324688,24.16395423,143.14,143.08,2.83]
[1764190324689,3.06,143.12,143.08,2.83]
[1764190325495,3.06,143.12,143.08,9.1217]
[1764190325995,9.3493,143.14,143.09,2.83]